fUST/lending_fUST_20250504
["ID","MTS","AMOUNT","RATE_DAILY","PERIOD"]
[359765750,1746311446440,-1000.0,0.00018125,2]
[359765751,1746311446450,-400.0,0.00018324,2]
[359765752,1746311446460,-3109.33236468,0.00018329,2]
[359765753,1746311446471,-1415.57946868,0.00018329,2]
[359765759,1746311672129,10000.0,0.00017299,2]
[359765769,1746312454089,-352.76810946,0.00018112,2]
[359765770,1746312454111,-710.12909038,0.00018128,2]
[359765771,1746312454133,-1000.0,0.00018173,2]
[359765772,1746312454154,-151.0,0.00018218,2]
[359765773,1746312454178,-300.0,0.00018223,2]
[359765774,1746312454200,-300.0,0.00018223,2]
[359765775,1746312454222,-500.0,0.00018224,2]
[359765776,1746312454245,-500.0,0.00018224,2]
[359765777,1746312454267,-500.0,0.00018224,2]
[359765778,1746312454291,-500.0,0.00018224,2]
[359765779,1746312454323,-500.0,0.00018224,2]
[359765780,1746312454345,-500.0,0.00018224,2]
[359765781,1746312454368,-500.0,0.00018224,2]
[359765782,1746312454400,-500.0,0.00018224,2]
[359765783,1746312454424,-500.0,0.00018224,2]
[359765784,1746312454446,-192.07029985,0.00018224,2]
[359765819,1746312632476,-1000.0,0.00018012,2]
[359765822,1746312632488,-790.3370685,0.00018124,2]
[359765824,1746312632500,-1004.03986849,0.00018125,2]
[359765826,1746312632513,-500.0,0.00018223,2]
[359765828,1746312632525,-567.77227819,0.00018223,2]
[359765831,1746312632537,-500.0,0.00018223,2]
[359765833,1746312632547,-500.0,0.00018223,2]
[359765835,1746312632558,-352.58905347,0.00018223,2]
[359765837,1746312632568,-300.0,0.00018223,2]
[359765839,1746312632578,-300.0,0.00018223,2]
[359765841,1746312632589,-168.0,0.00018223,2]
[359765844,1746312632600,-300.0,0.00018223,2]
[359765846,1746312632610,-1200.0,0.00018223,2]
[359765848,1746312632621,-36587.99161147,0.00018224,2]
[359765850,1746312632634,-3014.8813951,0.00018224,2]
[359765852,1746312632646,-10397.12699343,0.00018224,2]
[359765854,1746312632656,-400.0,0.00018224,2]
[359765857,1746312632666,-400.0,0.00018224,2]
[359765859,1746312632676,-400.0,0.00018224,2]
[359765861,1746312632686,-157.11254597,0.00018224,2]
[359765863,1746312632698,-400.0,0.00018224,2]
[359765865,1746312632708,-400.0,0.00018224,2]
[359765867,1746312632719,-400.0,0.00018224,2]
[359765869,1746312632729,-400.0,0.00018224,2]
[359765872,1746312632739,-400.0,0.00018224,2]
[359765874,1746312632750,-400.0,0.00018224,2]
[359765876,1746312632760,-500.0,0.00018224,2]
[359765878,1746312632771,-355.16540303,0.00018224,2]
[359765880,1746312632783,-500.0,0.00018224,2]
[359765883,1746312632794,-445.07017395,0.00018224,2]
[359765885,1746312632805,-400.0,0.00018225,2]
[359765887,1746312632815,-400.0,0.00018225,2]
[359765889,1746312632825,-400.0,0.00018225,2]
[359765891,1746312632835,-400.0,0.00018225,2]
[359765893,1746312632844,-400.0,0.00018225,2]
[359765895,1746312632854,-400.0,0.00018225,2]
[359765897,1746312632864,-400.0,0.00018225,2]
[359765899,1746312632874,-400.0,0.00018225,2]
[359765901,1746312632885,-400.0,0.00018225,2]
[359765903,1746312632895,-400.0,0.00018225,2]
[359765905,1746312632905,-400.0,0.00018225,2]
[359765907,1746312632916,-400.0,0.00018225,2]
[359765908,1746312632928,-400.0,0.00018225,2]
[359765909,1746312632939,-400.0,0.00018225,2]
[359765910,1746312632949,-171.72,0.00018225,2]
[359765911,1746312632959,-400.0,0.00018226,2]
[359765912,1746312632971,-515.6216281,0.00018226,2]
[359765913,1746312632981,-400.0,0.00018226,2]
[359765914,1746312632992,-400.0,0.00018226,2]
[359765915,1746312633004,-400.0,0.00018226,2]
[359765916,1746312633015,-400.0,0.00018226,2]
[359765917,1746312633026,-400.0,0.00018226,2]
[359765918,1746312633036,-400.0,0.00018226,2]
[359765919,1746312633046,-400.0,0.00018226,2]
[359765920,1746312633057,-400.0,0.00018226,2]
[359765921,1746312633067,-400.0,0.00018226,2]
[359765922,1746312633077,-8813.67880351,0.00018229,2]
[359765923,1746312633128,-500.0,0.00018223,2]
[359765924,1746312633139,-500.0,0.00018223,2]
[359765925,1746312633150,-500.0,0.00018223,2]
[359765926,1746312633163,-500.0,0.00018223,2]
[359765927,1746312633174,-500.0,0.00018223,2]
[359765928,1746312633185,-4182.36670911,0.00018229,2]
[359765929,1746312633198,-41687.69540176,0.00018229,2]
[359765930,1746312637282,1000.0,0.00017912,2]
[359765966,1746312638479,-500.0,0.00018223,2]
[359765967,1746312638489,-500.0,0.00018223,2]
[359765969,1746312638500,-500.0,0.00018223,2]
[359765971,1746312638509,-500.0,0.00018223,2]
[359765972,1746312638519,-367.88707537,0.00018223,2]
[359765973,1746312638531,-132.11292463,0.00018223,2]
[359765974,1746312638541,-500.0,0.00018223,2]
[359765975,1746312638550,-500.0,0.00018223,2]
[359765976,1746312638560,-500.0,0.00018223,2]
[359765977,1746312638570,-500.0,0.00018223,2]
[359765978,1746312638579,-500.0,0.00018223,2]
[359765979,1746312638589,-500.0,0.00018223,2]
[359765980,1746312638598,-500.0,0.00018223,2]
[359765981,1746312638608,-500.19741298,0.00018223,2]
[359765982,1746312638617,-500.0,0.00018223,2]
[359765983,1746312638627,-500.0,0.00018223,2]
[359765984,1746312638636,-500.0,0.00018223,2]
[359765985,1746312638645,-500.0,0.00018223,2]
[359765986,1746312638655,-500.0,0.00018223,2]
[359765987,1746312638665,-343.35111007,0.00018223,2]
[359765988,1746312638817,-156.64888993,0.00018223,2]
[359765989,1746312638827,-400.0,0.00018224,2]
[359765990,1746312638837,-2240.93344267,0.00018229,2]
[359765991,1746312638848,-103643.87576106,0.00018229,2]
[359766033,1746312640850,-400.0,0.00018224,2]
[359766035,1746312640860,-1146.78600054,0.00018229,2]
[359766039,1746312640954,-17486.69384684,0.00018229,2]
[359766040,1746312640963,-412.67142178,0.00018273,2]
[359766041,1746312640974,-500.0,0.00018273,2]
[359766042,1746312640983,-500.0,0.00018273,2]
[359766043,1746312640992,-500.0,0.00018273,2]
[359766044,1746312641001,-500.0,0.00018273,2]
[359766045,1746312641011,-500.0,0.00018273,2]
[359766046,1746312641020,-500.0,0.00018273,2]
[359766047,1746312641029,-400.0,0.00018324,2]
[359766048,1746312641038,-400.0,0.00018324,2]
[359766049,1746312641047,-311.63755516,0.00018324,2]
[359766050,1746312641056,-400.0,0.00018498,2]
[359766051,1746312641066,-400.0,0.00018498,2]
[359766052,1746312641075,-308.2,0.00018498,2]
[359766053,1746312641085,-400.0,0.00018499,2]
[359766054,1746312641094,-400.0,0.00018499,2]
[359766055,1746312641104,-400.0,0.00018499,2]
[359766056,1746312641113,-517.85,0.00018499,2]
[359766057,1746312641122,-400.0,0.00018499,2]
[359766058,1746312641131,-400.0,0.00018499,2]
[359766059,1746312641140,-400.0,0.00018499,2]
[359766060,1746312641149,-400.0,0.000185,2]
[359766062,1746312641158,-400.0,0.000185,2]
[359766064,1746312641168,-307.95,0.000185,2]
[359766065,1746312641177,-400.0,0.000185,2]
[359766067,1746312641186,-400.0,0.000185,2]
[359766070,1746312641195,-202.05,0.00018598,2]
[359766071,1746312641205,-400.0,0.00018598,2]
[359766073,1746312641214,-476.0,0.00018772,2]
[359766075,1746312641225,-400.0,0.00018773,2]
[359766077,1746312641234,-398.61,0.00018773,2]
[359766079,1746312641243,-280.93185151,0.00018773,2]
[359766082,1746312641255,-288.35,0.00018773,2]
[359766084,1746312641265,-445.6,0.00018773,2]
[359766085,1746312641274,-277.46,0.00018774,2]
[359766086,1746312641283,-408.3,0.00018774,2]
[359766088,1746312641293,-256.50155853,0.00018774,2]
[359766090,1746312641302,-699.50626406,0.000189,2]
[359766092,1746312641311,-500.0,0.00018973,2]
[359766094,1746312641321,-500.0,0.00018973,2]
[359766096,1746312641331,-500.0,0.00018973,2]
[359766098,1746312641340,-500.0,0.00018973,2]
[359766100,1746312641349,-500.0,0.00018973,2]
[359766102,1746312641358,-500.0,0.00018973,2]
[359766104,1746312641368,-500.46274838,0.00018973,2]
[359766106,1746312641377,-500.0,0.00018973,2]
[359766108,1746312641386,-2060.58503006,0.00019,2]
[359766360,1746312646568,-5898.64095899,0.00018125,2]
[359766361,1746312646739,-1237.43049552,0.00018125,2]
[359766366,1746312665850,253.9824368,0.00017678,2]
[359766371,1746312753618,1000.0,0.00017912,2]
[359766380,1746312908957,237.8892141,0.0001736,2]
[359766382,1746312986034,193.09858075,0.00017973,2]
[359766389,1746313086990,4664.0,0.00018,2]
[359766394,1746313322927,474.9805271,0.00017121,2]
[359766396,1746313457560,3200.0,0.00018,2]
[359766403,1746313640119,-887.99040658,0.00018024,2]
[359766404,1746313640139,-250.0,0.00018024,2]
[359766405,1746313640160,-1000.0,0.00018024,2]
[359766406,1746313640181,-151.0,0.00018114,2]
[359766407,1746313640202,-300.0,0.0001812,2]
[359766408,1746313640222,-1200.0,0.00018121,2]
[359766409,1746313640243,-300.0,0.00018121,2]
[359766410,1746313640264,-500.0,0.00018121,2]
[359766411,1746313640285,-500.0,0.00018121,2]
[359766412,1746313640319,-500.0,0.00018121,2]
[359766413,1746313640339,-181.18715071,0.00018121,2]
[359766414,1746313640369,-500.0,0.00018121,2]
[359766415,1746313640399,-500.0,0.00018121,2]
[359766416,1746313640430,-151.34873499,0.00018121,2]
[359766417,1746313669818,1000.0,0.00017924,2]
[359766438,1746313787071,1113.38097476,0.00017924,2]
[359766442,1746313807391,1000.0,0.00017922,2]
[359766443,1746313819740,12108.2359606,0.00017122,2]
[359766477,1746313832589,-878.53488492,0.00018022,2]
[359766479,1746313832598,-151.0,0.00018114,2]
[359766481,1746313832608,-300.0,0.0001812,2]
[359766483,1746313832617,-1200.0,0.0001812,2]
[359766485,1746313832626,-348.65126501,0.00018121,2]
[359766487,1746313832636,-200.34031416,0.00018121,2]
[359766489,1746313832645,-500.0,0.00018121,2]
[359766491,1746313832654,-500.0,0.00018121,2]
[359766493,1746313832663,-500.0,0.00018121,2]
[359766494,1746313832672,-500.0,0.00018121,2]
[359766495,1746313832683,-110.86081875,0.00018121,2]
[359766497,1746313832695,-389.13918125,0.00018121,2]
[359766498,1746313832704,-500.0,0.00018121,2]
[359766499,1746313832713,-500.0,0.00018121,2]
[359766500,1746313832723,-500.0,0.00018121,2]
[359766501,1746313832732,-500.0,0.00018121,2]
[359766503,1746313832741,-500.0,0.00018121,2]
[359766504,1746313832750,-500.0,0.00018121,2]
[359766505,1746313832759,-500.0,0.00018121,2]
[359766507,1746313832769,-500.0,0.00018121,2]
[359766509,1746313832778,-500.0,0.00018121,2]
[359766511,1746313832787,-500.0,0.00018121,2]
[359766514,1746313832797,-500.0,0.00018121,2]
[359766516,1746313832806,-500.0,0.00018121,2]
[359766518,1746313832815,-500.0,0.00018121,2]
[359766520,1746313832824,-500.0,0.00018121,2]
[359766522,1746313832833,-500.0,0.00018121,2]
[359766524,1746313832842,-500.0,0.00018121,2]
[359766526,1746313832851,-600.0,0.00018121,2]
[359766528,1746313832860,-500.0,0.00018121,2]
[359766530,1746313832870,-400.0,0.00018121,2]
[359766531,1746313832879,-400.0,0.00018121,2]
[359766532,1746313832889,-400.0,0.00018121,2]
[359766533,1746313832898,-400.0,0.00018121,2]
[359766534,1746313832907,-400.0,0.00018121,2]
[359766535,1746313832916,-400.0,0.00018121,2]
[359766536,1746313832926,-400.0,0.00018121,2]
[359766537,1746313832936,-400.0,0.00018121,2]
[359766538,1746313832945,-34823.81362469,0.00018121,2]
[359766539,1746313832961,-1030.85791989,0.00018121,2]
[359766540,1746313832970,-400.0,0.00018122,2]
[359766541,1746313832980,-400.0,0.00018122,2]
[359766542,1746313832989,-400.0,0.00018122,2]
[359766543,1746313832998,-400.0,0.00018122,2]
[359766544,1746313833008,-400.0,0.00018122,2]
[359766545,1746313833017,-400.0,0.00018122,2]
[359766546,1746313833027,-400.0,0.00018122,2]
[359766547,1746313833037,-400.0,0.00018122,2]
[359766548,1746313833046,-400.0,0.00018122,2]
[359766549,1746313833056,-400.0,0.00018122,2]
[359766550,1746313833066,-318.14598747,0.00018122,2]
[359766551,1746313833075,-400.0,0.00018123,2]
[359766552,1746313833085,-400.0,0.00018123,2]
[359766553,1746313833094,-400.0,0.00018123,2]
[359766554,1746313833104,-400.0,0.00018123,2]
[359766555,1746313833113,-400.0,0.00018123,2]
[359766556,1746313833123,-400.0,0.00018123,2]
[359766557,1746313833133,-400.0,0.00018123,2]
[359766558,1746313833142,-400.0,0.00018123,2]
[359766559,1746313833151,-400.0,0.00018123,2]
[359766560,1746313833161,-400.0,0.00018123,2]
[359766561,1746313833171,-400.0,0.00018123,2]
[359766562,1746313833180,-400.0,0.00018123,2]
[359766563,1746313833190,-400.0,0.00018123,2]
[359766564,1746313833200,-370.90363952,0.00018123,2]
[359766565,1746313833209,-400.0,0.00018123,2]
[359766566,1746313833219,-400.0,0.00018123,2]
[359766567,1746313833229,-400.0,0.00018123,2]
[359766568,1746313833239,-400.0,0.00018123,2]
[359766569,1746313833248,-400.0,0.00018123,2]
[359766570,1746313833258,-322.70934321,0.00018124,2]
[359766571,1746313833268,-500.0,0.00018124,2]
[359766572,1746313833277,-500.0,0.00018124,2]
[359766573,1746313833287,-307.12784743,0.00018124,2]
[359766574,1746313833296,-500.0,0.00018124,2]
[359766575,1746313833306,-5098.92951778,0.00018125,2]
[359766576,1746313833319,-8496.16969142,0.00018125,2]
[359766577,1746313833331,-434.89445479,0.00018125,2]
[359766618,1746313838703,-400.0,0.00018121,2]
[359766619,1746313838712,-400.0,0.00018123,2]
[359766620,1746313838722,-200.0,0.00018125,2]
[359766621,1746313838734,-2765.27079161,0.00018125,2]
[359766838,1746313840998,-400.0,0.00018121,2]
[359766841,1746313841007,-9409.90032059,0.00018125,2]
[359766950,1746313841516,-127521.96773778,0.00018125,2]
[359767193,1746313844152,-400.0,0.00018123,2]
[359767194,1746313844162,-4094.53414196,0.00018125,2]
[359767204,1746313846707,-151.10316959,0.00018121,2]
[359767205,1746313846717,-400.0,0.00018122,2]
[359767206,1746313846727,-14939.58864703,0.00018125,2]
[359767207,1746313846736,-500.0,0.00018173,2]
[359767208,1746313846746,-500.0,0.00018173,2]
[359767209,1746313846755,-500.0,0.00018173,2]
[359767210,1746313846764,-500.0,0.00018173,2]
[359767211,1746313846774,-500.0,0.00018173,2]
[359767212,1746313846784,-152.0,0.00018178,2]
[359767213,1746313846793,-400.0,0.00018224,2]
[359767214,1746313846803,-400.0,0.00018224,2]
[359767215,1746313846813,-400.0,0.00018224,2]
[359767216,1746313846822,-377.69589179,0.00018224,2]
[359767217,1746313846832,-386.72119206,0.00018224,2]
[359767218,1746313846844,-13.27880794,0.00018224,2]
[359767219,1746313846865,-400.0,0.00018224,2]
[359767220,1746313846876,-220.32119221,0.00018224,2]
[359767222,1746313932169,427.9829714,0.0001725,2]
[359767223,1746313945077,1000.0,0.00017922,2]
[359767226,1746313975779,15731.23394665,0.00017939,2]
[359767228,1746313984625,1761.9422001,0.00017088,2]
[359767234,1746314083628,1000.0,0.00017924,2]
[359767235,1746314128517,768.71802434,0.00017939,2]
[359767237,1746314200096,1000.0,0.00017924,2]
[359767248,1746314338120,1000.0,0.00017923,2]
[359767250,1746314344679,8643.9799001,0.00017038,2]
[359767254,1746314476523,1000.0,0.00017922,2]
[359767258,1746314572377,202.114731,0.00017922,3]
[359767259,1746314592764,237.14797477,0.00017922,2]
[359767260,1746314593815,672.62827128,0.00017922,2]
[359767263,1746314730492,1000.0,0.00017921,2]
[359767264,1746314740108,250.0,0.00017921,2]
[359767266,1746314772568,199.582643,0.00017021,2]
[359767269,1746314819290,588.54973737,0.00017921,2]
[359767270,1746314852121,-300.0,0.00018019,2]
[359767271,1746314852142,-300.0,0.0001802,2]
[359767272,1746314852162,-300.0,0.0001802,2]
[359767273,1746314852183,-1200.0,0.0001802,2]
[359767274,1746314852205,-300.0,0.0001802,2]
[359767275,1746314852226,-324.35783746,0.0001802,2]
[359767276,1746314852248,-500.0,0.0001802,2]
[359767277,1746314852269,-500.0,0.0001802,2]
[359767278,1746314852291,-500.0,0.0001802,2]
[359767279,1746314852324,-500.0,0.0001802,2]
[359767280,1746314852346,-500.0,0.0001802,2]
[359767281,1746314852366,-500.0,0.0001802,2]
[359767282,1746314852389,-466.1543874,0.0001802,2]
[359767283,1746314852410,-500.0,0.0001802,2]
[359767284,1746314852434,-202.36461214,0.0001802,2]
[359767286,1746314871277,2889.0,0.00018,2]
[359767288,1746314915503,3597.34407454,0.0001792,2]
[359767289,1746314924254,1508.83192949,0.00015,2]
[359767296,1746314940890,170.23668331,0.0001792,2]
[359767302,1746314980339,10000.0,0.00017023,2]
[359767331,1746315031820,-300.0,0.00018018,2]
[359767333,1746315031833,-300.0,0.00018018,2]
[359767335,1746315031842,-1200.0,0.00018018,2]
[359767337,1746315031852,-300.0,0.00018018,2]
[359767339,1746315031862,-400.0,0.00018019,2]
[359767341,1746315031871,-400.0,0.00018019,2]
[359767343,1746315031880,-400.0,0.00018019,2]
[359767345,1746315031891,-400.0,0.00018019,2]
[359767347,1746315031901,-245.36918048,0.00018019,2]
[359767349,1746315031911,-500.0,0.00018019,2]
[359767351,1746315031920,-500.0,0.00018019,2]
[359767353,1746315031930,-500.0,0.00018019,2]
[359767355,1746315031939,-400.0,0.00018019,2]
[359767357,1746315031948,-500.0,0.00018019,2]
[359767359,1746315031958,-500.0,0.00018019,2]
[359767361,1746315031967,-500.0,0.00018019,2]
[359767362,1746315031977,-500.0,0.00018019,2]
[359767365,1746315031987,-500.0,0.00018019,2]
[359767368,1746315031997,-500.0,0.00018019,2]
[359767370,1746315032006,-500.0,0.00018019,2]
[359767372,1746315032015,-500.0,0.00018019,2]
[359767374,1746315032025,-500.0,0.00018019,2]
[359767376,1746315032035,-500.0,0.00018019,2]
[359767378,1746315032044,-500.0,0.00018019,2]
[359767380,1746315032053,-500.0,0.00018019,2]
[359767382,1746315032062,-500.0,0.00018019,2]
[359767384,1746315032071,-500.0,0.00018019,2]
[359767386,1746315032081,-500.0,0.00018019,2]
[359767388,1746315032091,-390.98694168,0.00018019,2]
[359767390,1746315032100,-500.0,0.00018019,2]
[359767392,1746315032110,-500.0,0.00018019,2]
[359767394,1746315032119,-500.0,0.00018019,2]
[359767396,1746315032128,-267.11836616,0.00018019,2]
[359767398,1746315032137,-500.0,0.00018019,2]
[359767400,1746315032147,-500.0,0.00018019,2]
[359767402,1746315032156,-500.0,0.00018019,2]
[359767404,1746315032165,-500.0,0.00018019,2]
[359767406,1746315032175,-500.0,0.00018019,2]
[359767408,1746315032184,-500.0,0.00018019,2]
[359767410,1746315032194,-500.0,0.00018019,2]
[359767412,1746315032203,-500.0,0.00018019,2]
[359767414,1746315032213,-500.0,0.00018019,2]
[359767416,1746315032222,-500.0,0.00018019,2]
[359767418,1746315032231,-500.0,0.00018019,2]
[359767420,1746315032241,-476.21436191,0.00018019,2]
[359767422,1746315032251,-500.0,0.00018019,2]
[359767424,1746315032260,-500.0,0.00018019,2]
[359767426,1746315032270,-500.0,0.00018019,2]
[359767428,1746315032279,-500.0,0.00018019,2]
[359767430,1746315032288,-500.0,0.00018019,2]
[359767432,1746315032298,-500.0,0.00018019,2]
[359767434,1746315032307,-500.0,0.00018019,2]
[359767436,1746315032317,-500.0,0.00018019,2]
[359767438,1746315032327,-400.0,0.00018019,2]
[359767440,1746315032336,-400.0,0.00018019,2]
[359767442,1746315032346,-500.0,0.00018019,2]
[359767444,1746315032355,-500.0,0.00018019,2]
[359767446,1746315032365,-500.0,0.00018019,2]
[359767448,1746315032375,-500.0,0.00018019,2]
[359767450,1746315032384,-500.0,0.00018019,2]
[359767452,1746315032393,-500.0,0.00018019,2]
[359767454,1746315032403,-500.0,0.00018019,2]
[359767457,1746315032416,-500.0,0.00018019,2]
[359767459,1746315032426,-500.0,0.00018019,2]
[359767461,1746315032439,-500.0,0.00018019,2]
[359767463,1746315032448,-500.0,0.00018019,2]
[359767465,1746315032458,-500.0,0.00018019,2]
[359767467,1746315032467,-500.0,0.00018019,2]
[359767469,1746315032476,-500.0,0.00018019,2]
[359767471,1746315032486,-500.0,0.00018019,2]
[359767473,1746315032495,-500.0,0.00018019,2]
[359767475,1746315032504,-400.0,0.00018019,2]
[359767477,1746315032513,-500.0,0.00018019,2]
[359767479,1746315032522,-500.0,0.00018019,2]
[359767481,1746315032532,-500.0,0.00018019,2]
[359767483,1746315032541,-300.0,0.00018019,2]
[359767485,1746315032551,-511.75275521,0.00018019,2]
[359767487,1746315032560,-400.0,0.00018019,2]
[359767489,1746315032570,-50000.0,0.0001802,2]
[359767491,1746315032580,-380.94227215,0.00018021,2]
[359767493,1746315032589,-500.0,0.00018021,2]
[359767495,1746315032599,-500.0,0.00018021,2]
[359767497,1746315032608,-398.52141698,0.00018021,2]
[359767499,1746315032617,-400.0,0.00018021,2]
[359767501,1746315032627,-400.0,0.00018021,2]
[359767503,1746315032636,-400.0,0.00018021,2]
[359767505,1746315032645,-400.0,0.00018021,2]
[359767506,1746315032655,-400.0,0.00018021,2]
[359767507,1746315032664,-400.0,0.00018021,2]
[359767508,1746315032673,-491.4,0.00018021,2]
[359767509,1746315032682,-400.0,0.00018021,2]
[359767510,1746315032691,-400.0,0.00018021,2]
[359767511,1746315032700,-400.0,0.00018021,2]
[359767512,1746315032709,-400.0,0.00018022,2]
[359767513,1746315032719,-220.93177949,0.00018023,2]
[359767514,1746315032728,-400.0,0.00018023,2]
[359767515,1746315032737,-400.0,0.00018023,2]
[359767516,1746315032746,-400.0,0.00018023,2]
[359767517,1746315032755,-400.0,0.00018023,2]
[359767518,1746315032764,-400.0,0.00018023,2]
[359767519,1746315032773,-400.0,0.00018023,2]
[359767520,1746315032782,-400.0,0.00018023,2]
[359767521,1746315032791,-400.0,0.00018023,2]
[359767522,1746315032800,-400.0,0.00018023,2]
[359767524,1746315032809,-400.0,0.00018023,2]
[359767527,1746315032965,-400.0,0.00018023,2]
[359767528,1746315032974,-400.0,0.00018023,2]
[359767529,1746315032984,-400.0,0.00018023,2]
[359767530,1746315032993,-400.0,0.00018023,2]
[359767531,1746315033002,-400.0,0.00018023,2]
[359767532,1746315033011,-400.0,0.00018024,2]
[359767533,1746315033022,-527.32846581,0.00018024,2]
[359767534,1746315033031,-400.0,0.00018024,2]
[359767535,1746315033041,-400.0,0.00018024,2]
[359767536,1746315033050,-400.0,0.00018024,2]
[359767537,1746315033059,-400.0,0.00018024,2]
[359767538,1746315033069,-370000.0,0.00018025,2]
[359767539,1746315033079,-152.0,0.00018053,2]
[359767540,1746315033089,-219.09622855,0.0001812,2]
[359767541,1746315033099,-400.0,0.0001812,2]
[359767542,1746315033108,-400.0,0.0001812,2]
[359767543,1746315033118,-400.0,0.0001812,2]
[359767544,1746315033128,-400.0,0.0001812,2]
[359767545,1746315033137,-400.0,0.0001812,2]
[359767546,1746315033147,-400.0,0.0001812,2]
[359767547,1746315033156,-400.0,0.0001812,2]
[359767548,1746315033166,-400.0,0.0001812,2]
[359767549,1746315033175,-651.83682938,0.00018169,2]
[359767550,1746315033185,-500.0,0.00018273,2]
[359767551,1746315033194,-500.0,0.00018273,2]
[359767552,1746315033204,-500.0,0.00018273,2]
[359767553,1746315033214,-500.0,0.00018273,2]
[359767554,1746315033223,-14819.81345104,0.0001829,2]
[359767555,1746315033233,-400.0,0.00018293,2]
[359767556,1746315033242,-400.0,0.00018293,2]
[359767557,1746315033251,-400.0,0.00018293,2]
[359767558,1746315033261,-400.0,0.00018293,2]
[359767559,1746315033270,-400.0,0.00018293,2]
[359767560,1746315033279,-400.0,0.00018293,2]
[359767561,1746315033289,-400.0,0.00018293,2]
[359767562,1746315033298,-400.0,0.00018293,2]
[359767563,1746315033308,-400.0,0.00018295,2]
[359767564,1746315033318,-400.0,0.00018295,2]
[359767565,1746315033328,-400.0,0.00018295,2]
[359767566,1746315033337,-400.0,0.00018295,2]
[359767567,1746315033346,-400.0,0.00018295,2]
[359767568,1746315033356,-400.0,0.00018295,2]
[359767569,1746315033366,-400.0,0.00018295,2]
[359767570,1746315033376,-400.0,0.00018295,2]
[359767571,1746315033385,-400.0,0.00018296,2]
[359767572,1746315033395,-400.0,0.00018297,2]
[359767573,1746315033404,-400.0,0.00018297,2]
[359767574,1746315033414,-400.0,0.00018297,2]
[359767575,1746315033423,-400.0,0.00018297,2]
[359767576,1746315033436,-400.0,0.00018297,2]
[359767577,1746315033446,-536.92,0.00018297,2]
[359767578,1746315033456,-400.0,0.00018297,2]
[359767579,1746315033466,-400.0,0.00018297,2]
[359767580,1746315033476,-400.0,0.00018297,2]
[359767581,1746315033487,-400.0,0.00018297,2]
[359767582,1746315033496,-400.0,0.00018297,2]
[359767583,1746315033505,-400.0,0.00018297,2]
[359767584,1746315033516,-400.0,0.00018297,2]
[359767585,1746315033525,-448.36,0.00018298,2]
[359767586,1746315033535,-400.0,0.00018298,2]
[359767587,1746315033544,-400.0,0.00018298,2]
[359767588,1746315033554,-400.0,0.00018298,2]
[359767589,1746315033565,-400.0,0.00018298,2]
[359767590,1746315033575,-400.0,0.00018394,2]
[359767591,1746315033585,-400.0,0.00018394,2]
[359767592,1746315033595,-400.0,0.00018394,2]
[359767593,1746315033605,-400.0,0.00018394,2]
[359767594,1746315033615,-400.0,0.00018394,2]